bitfinex/quotes_BTCUSD_20250408
["timestamp","ask_amount","ask_price","bid_price","bid_amount"]
[1744112197038,0.01255,79676.0,79674.0,0.003]
[1744112197329,0.251013,79677.0,79674.0,0.003]
[1744112197652,0.012549,79683.0,79674.0,0.003]
[1744112197653,0.250937,79701.0,79692.0,0.263511]
[1744112197830,0.250937,79701.0,79686.0,0.012549]
[1744112197831,0.263517,79691.0,79688.0,0.15348]
[1744112198052,0.263522,79690.0,79688.0,0.15348]
[1744112198186,0.012548,79689.0,79688.0,0.15348]
[1744112198399,0.012548,79689.0,79673.0,0.00012546]
[1744112198400,0.263569,79675.0,79674.0,0.005]
[1744112198611,0.263569,79675.0,79674.0,0.15548]
[1744112198944,0.263569,79675.0,79674.0,0.15348]
[1744112199291,0.251007,79679.0,79674.0,0.15348]
[1744112199500,0.012549,79682.0,79674.0,0.15348]
[1744112199837,0.263558,79679.0,79674.0,0.420053]
[1744112200249,0.263558,79679.0,79674.0,0.417053]
[1744112200574,0.263558,79679.0,79674.0,0.15848]
[1744112200575,0.263569,79675.0,79674.0,0.15848]
[1744112201928,0.263569,79675.0,79674.0,0.16048]
[1744112202093,0.263569,79675.0,79674.0,0.15748]
[1744112202312,0.263569,79675.0,79674.0,0.16048]
[1744112202630,0.263569,79675.0,79674.0,0.007]
[1744112202821,0.263569,79675.0,79673.0,0.00012546]
[1744112202822,0.012551,79674.0,79673.0,4.6e-07]
[1744112203023,0.263613,79662.0,79654.0,0.15348]
[1744112204503,0.263613,79662.0,79661.0,0.009]
[1744112205515,0.264613,79662.0,79661.0,0.015]
[1744112205935,0.263613,79662.0,79661.0,0.009]
[1744112206120,0.263613,79662.0,79661.0,0.004]
[1744112206323,0.266613,79662.0,79661.0,0.004]
[1744112206725,0.001,79662.0,79661.0,0.004]
[1744112206926,0.001,79662.0,79661.0,0.255063]
[1744112207165,0.01255,79677.0,79670.0,0.263583]
[1744112207166,0.00012527,79674.0,79670.0,0.263583]
[1744112207297,0.00012527,79674.0,79671.0,0.26358]
[1744112207498,0.00012527,79674.0,79671.0,0.13880964]
[1744112207700,0.00012527,79674.0,79672.0,0.012551]
[1744112208048,0.00012527,79674.0,79673.0,0.212971]
[1744112208809,0.00312527,79674.0,79673.0,0.212971]
[1744112209010,0.00312527,79674.0,79673.0,0.20042]
[1744112209215,0.26369827,79674.0,79673.0,0.15352]
[1744112209414,0.26769827,79674.0,79673.0,0.15352]
[1744112209614,0.00012527,79674.0,79673.0,0.15352]
[1744112209815,0.01267627,79674.0,79673.0,0.15352]
[1744112210020,0.00112527,79674.0,79673.0,0.404546]
[1744112210249,0.00012527,79674.0,79673.0,0.463997]
[1744112210422,0.00512527,79674.0,79673.0,0.451446]
[1744112210781,0.01012527,79674.0,79673.0,0.464997]
[1744112210990,0.00512527,79674.0,79673.0,0.463997]
[1744112211529,0.00512527,79674.0,79673.0,0.15352]
[1744112211844,0.26369827,79674.0,79673.0,0.15352]
[1744112212055,0.26369827,79674.0,79673.0,0.15652]
[1744112212437,0.26369827,79674.0,79673.0,0.15352]
[1744112212874,0.26369827,79674.0,79673.0,0.15752]
[1744112213080,0.26369827,79674.0,79673.0,0.15552]
[1744112213282,0.26369827,79674.0,79673.0,0.15352]
[1744112213485,0.26469827,79674.0,79673.0,0.15352]
[1744112213682,0.26569827,79674.0,79673.0,0.15352]
[1744112214598,0.26569827,79674.0,79661.0,0.004]
[1744112214599,0.263613,79662.0,79661.0,0.004]
[1744112215699,0.264613,79662.0,79661.0,0.011]
[1744112216120,0.267613,79662.0,79661.0,0.011]
[1744112216268,0.266613,79662.0,79661.0,0.004]
[1744112216669,0.268613,79662.0,79661.0,0.004]
[1744112218102,0.39487164,79662.0,79661.0,1e-06]
[1744112219105,0.81167164,79662.0,79661.0,1e-06]
[1744112219310,0.85607164,79662.0,79661.0,1e-06]
[1744112220951,0.263672,79644.0,79643.0,0.0003358]
[1744112222162,0.002,79644.0,79643.0,0.27343027]
[1744112222384,0.002,79644.0,79643.0,1.48906891]
[1744112222564,0.01255,79678.0,79667.0,0.012552]
[1744112222565,0.263579,79673.0,79667.0,0.012552]
[1744112222977,0.012552,79668.0,79666.0,0.15404]
[1744112223197,0.263596,79667.0,79666.0,0.15404]
[1744112223634,0.01000149,79668.0,79667.0,0.012552]
[1744112223837,0.00012527,79668.0,79666.0,0.15404]
[1744112224037,0.25116727,79668.0,79666.0,0.15404]
[1744112224232,0.26371927,79668.0,79666.0,0.15404]
[1744112224495,0.012552,79667.0,79666.0,0.15404]
[1744112225340,0.01187672,79668.0,79666.0,0.15404]
[1744112225481,0.27547272,79668.0,79666.0,0.15404]
[1744112225675,0.012552,79667.0,79666.0,0.15404]
[1744112225879,0.006,79667.0,79666.0,0.15404]
[1744112226105,0.01,79667.0,79666.0,0.15404]
[1744112226508,0.022552,79667.0,79666.0,0.15404]
[1744112226883,0.016552,79667.0,79666.0,0.15404]
[1744112227425,0.012552,79667.0,79666.0,0.15404]
[1744112227842,0.017552,79667.0,79666.0,0.15404]
[1744112228893,0.012554,79654.0,79653.0,0.15404]
[1744112229954,0.251081,79656.0,79653.0,0.15404]
[1744112230113,0.424353,79659.0,79653.0,0.417679]
[1744112230312,0.251079,79657.0,79653.0,0.15404]
[1744112230565,0.251085,79654.0,79653.0,0.15404]
[1744112230878,0.251085,79654.0,79653.0,0.15704]
[1744112231061,0.251085,79654.0,79653.0,0.16004]
[1744112231303,0.263639,79654.0,79653.0,0.15704]
[1744112231640,0.263639,79654.0,79653.0,0.16004]
[1744112232045,0.263639,79654.0,79653.0,0.15704]
[1744112232347,0.263622,79660.0,79655.0,0.012554]
[1744112232545,0.25108,79656.0,79653.0,0.15804]
[1744112232748,0.012553,79657.0,79653.0,0.15504]
[1744112232945,0.4118,79659.0,79655.0,0.263636]
[1744112233144,0.4118,79659.0,79658.0,0.251073]
[1744112233351,0.4118,79659.0,79658.0,0.263626]
[1744112233845,0.4128,79659.0,79658.0,0.309126]
[1744112234455,0.4118,79659.0,79658.0,0.309126]
[1744112234679,0.4128,79659.0,79658.0,0.309126]
[1744112234868,0.4138,79659.0,79658.0,0.309126]
[1744112235057,0.002,79659.0,79658.0,0.309126]
[1744112235365,0.001,79659.0,79658.0,0.309126]
[1744112236438,0.26092072,79668.0,79665.0,0.2636]
[1744112236439,0.00987672,79668.0,79665.0,0.2636]
[1744112236786,0.00987672,79668.0,79662.0,0.012553]
[1744112236787,0.27347272,79668.0,79662.0,0.012553]
[1744112237188,0.012552,79667.0,79662.0,0.012553]
[1744112237460,0.00012527,79668.0,79667.0,0.310496]
[1744112237667,0.00412527,79668.0,79667.0,0.310496]
[1744112237784,0.00812527,79668.0,79667.0,0.310496]
[1744112238385,0.01255,79676.0,79667.0,0.310496]
[1744112238387,0.0001682,79705.0,79693.0,0.263511]
[1744112238586,0.02,79723.0,79693.0,0.263511]
[1744112238587,1.2e-07,79711.0,79706.0,0.15]
[1744112238793,1.2e-07,79711.0,79701.0,0.012546]
[1744112238794,0.02,79723.0,79722.0,0.400871]
[1744112238795,9.1e-07,79723.0,79722.0,0.400871]
[1744112238997,0.000168,79735.0,79722.0,0.400871]
[1744112238998,0.000168,79735.0,79734.0,0.263375]
[1744112239167,9.7e-07,79743.0,79742.0,0.01254]
[1744112239314,0.017533,79784.0,79742.0,0.01254]
[1744112239315,0.005,79788.0,79778.0,0.012534]
[1744112239511,0.674995,79789.0,79778.0,0.012534]
[1744112239512,0.012533,79787.0,79778.0,0.166574]
[1744112239756,0.263202,79787.0,79778.0,0.166574]
[1744112239960,0.250664,79789.0,79778.0,0.166574]
[1744112239961,0.263191,79790.0,79778.0,0.166574]
[1744112240160,0.00441865,79779.0,79778.0,0.166574]
[1744112240368,0.00441865,79779.0,79778.0,0.29283264]
[1744112240978,0.4118,79808.0,79778.0,0.29283264]
[1744112240979,0.250626,79801.0,79791.0,0.012532]
[1744112241186,0.250626,79801.0,79783.0,0.250679]
[1744112241187,0.012532,79790.0,79781.0,0.250685]
[1744112241492,0.250676,79784.0,79781.0,0.12625864]
[1744112241692,0.012534,79779.0,79778.0,0.0924]
[1744112241916,0.012534,79779.0,79778.0,0.25036]
[1744112242037,0.012533,79785.0,79778.0,0.25036]
[1744112242038,0.012532,79793.0,79785.0,0.012533]
[1744112242252,0.012532,79792.0,79786.0,0.012533]
[1744112242468,0.00071498,79800.0,79799.0,0.012531]
[1744112242676,0.00071498,79800.0,79799.0,0.170411]
[1744112242880,0.00071498,79800.0,79799.0,0.16748171]
[1744112243106,0.01324598,79800.0,79799.0,0.15788]
[1744112243468,0.00071498,79800.0,79799.0,0.15788]
[1744112243669,0.01324598,79800.0,79799.0,0.15788]
[1744112244060,0.00071498,79800.0,79799.0,0.16088]
[1744112244263,0.00171498,79800.0,79799.0,0.16088]
[1744112244462,0.00171498,79800.0,79799.0,0.28713864]
[1744112244605,0.00171498,79800.0,79799.0,0.29666964]
[1744112244810,0.00371498,79800.0,79799.0,0.29666964]
[1744112245018,0.004,79809.0,79808.0,0.263131]
[1744112245219,0.00406811,79809.0,79808.0,0.12625864]
[1744112245660,0.00406811,79809.0,79808.0,0.28409864]
[1744112246278,0.00406811,79809.0,79808.0,0.29662864]
[1744112246492,0.00406811,79809.0,79808.0,0.28409864]
[1744112246876,0.00406811,79809.0,79808.0,0.28809864]
[1744112247645,0.00406811,79809.0,79808.0,0.29209864]
[1744112248218,0.00406811,79809.0,79808.0,0.16576]
[1744112248219,0.01659711,79809.0,79808.0,0.16576]
[1744112248429,0.07213422,79809.0,79808.0,1e-06]
[1744112248548,0.07213422,79809.0,79780.0,0.1979]
[1744112248549,0.26322,79781.0,79780.0,0.00919814]
[1744112248754,0.263302,79756.0,79747.0,0.0471]
[1744112248949,0.263248,79773.0,79758.0,0.012537]
[1744112249235,0.4168,79789.0,79776.0,0.11003905]
[1744112249236,0.2507,79777.0,79776.0,0.11003905]
[1744112249352,0.263234,79777.0,79776.0,0.11003905]
[1744112249559,0.27320105,79777.0,79776.0,0.11003905]
[1744112250244,0.39945969,79777.0,79776.0,5.9e-07]
[1744112250442,0.81625969,79777.0,79776.0,5.9e-07]
[1744112250669,0.83080054,79777.0,79776.0,5.9e-07]
[1744112250868,0.83080054,79777.0,79736.0,0.15776]
[1744112250869,0.263365,79737.0,79736.0,0.15776]
[1744112250999,0.263365,79737.0,79718.0,0.0479]
[1744112251000,0.012543,79722.0,79718.0,0.0479]
[1744112251417,0.012543,79722.0,79721.0,0.00080559]
[1744112251605,0.012544,79715.0,79714.0,9e-08]
[1744112251799,0.263417,79721.0,79692.0,0.15776]
[1744112251800,0.263511,79693.0,79692.0,0.15776]
[1744112252000,0.263511,79693.0,79688.0,0.0479]
[1744112252001,0.012548,79692.0,79688.0,0.0479]
[1744112252311,0.012548,79692.0,79668.0,0.0471]
[1744112252312,0.263589,79669.0,79668.0,0.0471]
[1744112252503,0.263589,79669.0,79659.0,0.15776]
[1744112252504,0.012552,79668.0,79659.0,0.170313]
[1744112252699,0.01255,79680.0,79670.0,0.012551]
[1744112252947,0.01255,79680.0,79670.0,0.263584]
[1744112253315,0.012551,79669.0,79647.0,0.15]
[1744112253459,0.012551,79672.0,79664.0,0.012552]
[1744112253668,0.013551,79669.0,79668.0,0.009]
[1744112253840,0.01361893,79669.0,79668.0,0.009]
[1744112254039,0.012552,79668.0,79658.0,0.012553]
[1744112254236,0.012552,79668.0,79656.0,0.263632]
[1744112254441,0.012552,79664.0,79661.0,0.013]
[1744112254641,0.012553,79662.0,79661.0,0.013]
[1744112255763,0.012553,79662.0,79661.0,0.004]
[1744112256224,0.012553,79662.0,79661.0,0.007]
[1744112256424,0.012553,79662.0,79645.0,0.15784]
[1744112256425,0.012555,79646.0,79645.0,0.15784]
[1744112256719,0.263666,79646.0,79645.0,0.15784]
[1744112256926,0.012554,79652.0,79645.0,0.15784]
[1744112257109,0.263637,79655.0,79646.0,0.012555]
[1744112257306,0.012554,79652.0,79645.0,0.15784]
[1744112257513,0.251071,79659.0,79645.0,0.15784]
[1744112257514,0.3590884,79680.0,79661.0,0.012553]
[1744112257717,0.001,79662.0,79661.0,0.007]
[1744112258060,0.001,79662.0,79661.0,0.39687464]
[1744112258914,9.3e-07,79669.0,79668.0,0.508593]
[1744112259284,0.004,79719.0,79696.0,0.012547]
[1744112259285,0.012546,79704.0,79696.0,0.012547]
[1744112259473,0.250918,79707.0,79700.0,0.012547]
[1744112259474,0.250919,79707.0,79700.0,0.012547]
[1744112259769,0.01267032,79710.0,79702.0,0.263477]
[1744112260075,0.00012532,79710.0,79706.0,0.012546]
[1744112260275,0.00012532,79710.0,79709.0,0.012545]
[1744112260413,0.00012532,79710.0,79709.0,0.13880364]
[1744112260618,0.00012532,79710.0,79709.0,0.18670364]
[1744112261024,0.26357932,79710.0,79709.0,0.0479]
[1744112261252,0.26357932,79710.0,79694.0,1.14408]
[1744112261253,0.012546,79704.0,79694.0,1.14408]
[1744112261465,0.012546,79704.0,79694.0,0.99408]
[1744112261466,0.263483,79701.0,79694.0,0.99408]
[1744112261660,0.263483,79701.0,79694.0,1.006627]
[1744112261897,0.263483,79701.0,79694.0,0.99408]
[1744112262068,0.250898,79714.0,79700.0,0.170427]
[1744112262274,0.00012532,79710.0,79703.0,0.012546]
[1744112262474,0.01267032,79710.0,79709.0,0.009]
[1744112262882,0.00012532,79710.0,79709.0,0.14780364]
[1744112263091,0.00012532,79710.0,79709.0,0.14131256]
[1744112264113,0.00012532,79710.0,79709.0,0.19051256]
[1744112264340,0.00012532,79710.0,79709.0,0.19151256]
[1744112264656,0.00012532,79710.0,79709.0,0.21409754]
[1744112264989,0.00012532,79710.0,79709.0,0.21158862]
[1744112265252,0.00012532,79710.0,79709.0,0.19151249]
[1744112265426,0.00012532,79710.0,79709.0,0.34939249]
[1744112265629,0.00012532,79710.0,79709.0,0.34588364]
[1744112265828,0.00012532,79710.0,79709.0,0.35488364]
[1744112266029,0.00012532,79710.0,79709.0,0.35388364]
[1744112266351,0.00012532,79710.0,79709.0,0.36748542]
[1744112266553,0.00112532,79710.0,79709.0,0.36848542]
[1744112266781,0.00012532,79710.0,79709.0,0.37348542]
[1744112267128,0.00112532,79710.0,79709.0,0.36848542]
[1744112267351,0.00012532,79710.0,79709.0,0.36748542]
[1744112267532,0.00012532,79710.0,79709.0,0.37648542]
[1744112267853,0.00112532,79710.0,79709.0,0.37748542]
[1744112269179,0.00112532,79710.0,79709.0,0.37744542]
[1744112270767,0.00112532,79710.0,79709.0,0.39198627]
[1744112271170,0.004,79719.0,79718.0,0.413428]
[1744112271399,0.004,79719.0,79718.0,0.54010529]
[1744112271715,0.0127082,79742.0,79718.0,0.54010529]
[1744112271716,0.0001682,79742.0,79741.0,0.263352]
[1744112272037,0.0001682,79742.0,79741.0,0.55029064]
[1744112272212,0.0001682,79742.0,79741.0,0.16068]
[1744112272427,0.0127082,79742.0,79741.0,0.16068]
[1744112272817,0.0001682,79742.0,79741.0,0.16068]
[1744112273221,0.0001682,79742.0,79741.0,0.16468]
[1744112273438,0.0001682,79742.0,79741.0,0.16668]
[1744112273591,0.0001682,79742.0,79741.0,0.30547864]
[1744112273805,0.0001682,79742.0,79741.0,0.30147864]
[1744112274227,0.0001682,79742.0,79741.0,0.32410881]
[1744112274767,2e-07,79742.0,79741.0,0.32410881]
[1744112275048,0.424334,79778.0,79768.0,0.012536]
[1744112275049,0.250695,79778.0,79768.0,0.012536]
[1744112275256,0.012535,79773.0,79769.0,0.28689864]
[1744112275477,0.012534,79781.0,79769.0,0.28689864]
[1744112275478,0.0097153,79795.0,79778.0,0.263229]
[1744112275681,0.0001682,79790.0,79778.0,0.38948764]
[1744112275802,0.0001682,79790.0,79778.0,0.42142867]
[1744112276158,0.0001682,79790.0,79778.0,0.46762867]
[1744112276365,0.00412537,79779.0,79778.0,0.46762867]
[1744112277005,0.00412537,79779.0,79778.0,0.21239967]
[1744112277210,0.00412537,79779.0,79778.0,0.16588881]
[1744112277211,0.26835137,79779.0,79778.0,0.16588881]
[1744112277509,0.01765937,79779.0,79778.0,0.20027017]
[1744112277885,0.01765937,79779.0,79778.0,0.1776]
[1744112278289,0.01765937,79779.0,79778.0,0.1696]
[1744112278471,0.01765937,79779.0,79778.0,0.1786]
[1744112279101,0.01665937,79779.0,79778.0,0.1606]
[1744112279312,0.26835437,79779.0,79778.0,0.011]
[1744112279513,0.00512537,79779.0,79778.0,0.011]
[1744112279689,0.01765937,79779.0,79778.0,0.004]
[1744112279888,0.263229,79778.0,79774.0,1.15432]
[1744112280136,0.00612537,79779.0,79778.0,0.012534]
[1744112280429,0.00512537,79779.0,79778.0,0.12625864]
[1744112280599,0.26324,79775.0,79774.0,0.99372]
[1744112280801,0.26324,79775.0,79774.0,1.15432]
[1744112280996,0.25782037,79779.0,79750.0,0.0493]
[1744112280997,0.012538,79756.0,79753.0,0.9934]
[1744112281199,0.263294,79759.0,79754.0,0.18329636]
[1744112281395,0.012537,79762.0,79754.0,0.18329636]
[1744112281396,0.263285,79762.0,79754.0,0.18329636]
[1744112281598,0.26328,79763.0,79755.0,0.263305]
[1744112281847,0.012535,79774.0,79767.0,0.250729]
[1744112282050,0.012536,79770.0,79765.0,0.012536]
[1744112282249,0.012535,79773.0,79764.0,0.263274]
[1744112282250,0.01665937,79779.0,79774.0,0.250708]
[1744112282454,0.250695,79778.0,79775.0,0.1606]
[1744112282657,0.250695,79778.0,79762.0,0.250745]
[1744112282658,0.012537,79759.0,79754.0,0.01821443]
[1744112282829,0.012537,79759.0,79755.0,0.30954309]
[1744112283031,0.012537,79763.0,79757.0,0.250761]
[1744112283273,0.250718,79771.0,79757.0,0.250761]
[1744112283274,0.001,79762.0,79759.0,0.263291]
[1744112283437,0.01665937,79779.0,79771.0,0.012535]
[1744112283632,0.26324,79775.0,79774.0,0.002]
[1744112284483,0.26324,79775.0,79772.0,0.1606]
[1744112284484,0.012538,79755.0,79753.0,0.9934]
[1744112284657,0.263305,79755.0,79751.0,0.16056]
[1744112284858,0.38956364,79755.0,79754.0,0.03070802]
[1744112285062,0.38956364,79755.0,79738.0,0.16056]
[1744112285063,0.263319,79751.0,79738.0,0.16056]
[1744112285264,0.80137764,79751.0,79738.0,0.16056]
[1744112285872,0.250881,79719.0,79718.0,0.0461]
[1744112286074,0.263425,79719.0,79718.0,0.16056]
[1744112286278,0.263414,79722.0,79718.0,0.16056]
[1744112286678,0.263421,79720.0,79718.0,0.16056]
[1744112286881,0.012544,79719.0,79718.0,0.16056]
[1744112287081,0.263421,79720.0,79718.0,0.16056]
[1744112287082,6.811e-05,79720.0,79718.0,0.16056]
[1744112287281,6.811e-05,79720.0,79719.0,0.263425]
[1744112287502,6.811e-05,79720.0,79719.0,0.38968364]
[1744112287950,6.811e-05,79720.0,79719.0,0.41250787]
[1744112288155,1.1e-07,79720.0,79719.0,0.41250787]
[1744112288294,0.012537,79763.0,79755.0,0.012538]
[1744112288488,0.012538,79755.0,79739.0,0.1606]
[1744112288842,0.01254,79741.0,79739.0,0.1606]
[1744112289035,0.012539,79746.0,79739.0,0.1606]
[1744112289190,0.25079,79748.0,79742.0,0.250807]
[1744112289392,0.00312528,79763.0,79743.0,0.14910198]
[1744112289594,0.00312528,79763.0,79749.0,0.012539]
[1744112289800,0.00312528,79763.0,79750.0,0.02284334]
[1744112289801,0.012539,79751.0,79750.0,0.02284334]
[1744112290195,0.012538,79757.0,79750.0,0.02284334]
[1744112290393,0.250752,79760.0,79755.0,0.263303]
[1744112290595,0.250752,79760.0,79751.0,0.02284334]
[1744112290596,0.012538,79752.0,79751.0,0.02284334]
[1744112291435,0.263309,79754.0,79751.0,0.02284334]
[1744112291587,0.012539,79750.0,79749.0,0.1606]
[1744112291790,0.263322,79750.0,79749.0,0.1606]
[1744112292352,0.263322,79750.0,79749.0,0.18347507]
[1744112292720,0.263299,79757.0,79749.0,0.18347507]
[1744112292931,0.250752,79761.0,79750.0,0.03541407]
[1744112293128,0.263294,79759.0,79752.0,0.012538]
[1744112293357,0.00112528,79763.0,79752.0,0.012538]
[1744112293358,0.00012528,79763.0,79761.0,0.250746]
[1744112293689,0.00012528,79763.0,79762.0,0.012537]
[1744112293824,0.00012528,79763.0,79762.0,0.03541207]
[1744112294035,0.00012528,79763.0,79762.0,0.02287507]
[1744112294870,0.01266228,79763.0,79762.0,0.02287507]
[1744112295656,0.01366228,79763.0,79762.0,0.02287507]
[1744112295855,0.01366228,79763.0,79762.0,0.012537]
[1744112295856,0.41292528,79763.0,79762.0,0.012537]
[1744112296057,0.00112528,79763.0,79762.0,0.38954064]
[1744112296357,0.00112528,79763.0,79762.0,0.411345]
[1744112296358,0.00212528,79763.0,79762.0,0.411345]
[1744112296584,0.00212528,79763.0,79741.0,0.15]
[1744112296585,0.263315,79753.0,79747.0,0.012539]
[1744112296816,0.263308,79755.0,79748.0,0.55018664]
[1744112297030,0.263308,79755.0,79748.0,0.02288924]
[1744112297031,0.012538,79752.0,79748.0,0.02288924]
[1744112297225,0.263319,79751.0,79749.0,0.1606]
[1744112297367,0.012539,79750.0,79749.0,0.18348924]
[1744112297575,0.424339,79750.0,79749.0,0.02288924]
[1744112297770,0.424339,79750.0,79737.0,0.1606]
[1744112297771,0.263358,79739.0,79738.0,0.02288924]
[1744112298394,0.80141664,79739.0,79738.0,0.02288924]
[1744112298735,0.80141664,79739.0,79711.0,0.012545]
[1744112298736,0.012544,79718.0,79717.0,0.000336]
[1744112298940,0.012542,79732.0,79726.0,0.250857]
[1744112299150,0.4118,79737.0,79727.0,0.1606]
[1744112299151,0.012541,79733.0,79727.0,0.1606]
[1744112299339,0.26338,79733.0,79727.0,0.1606]
[1744112299547,0.012542,79729.0,79727.0,0.1606]
[1744112299726,0.012542,79729.0,79728.0,0.02292571]
[1744112299886,0.250794,79747.0,79728.0,0.03546771]
[1744112300106,0.4118,79750.0,79738.0,0.263362]
[1744112300315,1.253329,79788.0,79738.0,0.38962064]
[1744112300316,0.250779,79752.0,79738.0,0.38962064]
[1744112300545,0.263328,79749.0,79738.0,0.38962064]
[1744112300815,0.01354,79739.0,79738.0,0.02292571]
[1744112301019,0.01254,79739.0,79738.0,0.02292571]
[1744112301331,0.012541,79734.0,79729.0,0.1606]
[1744112301518,0.263349,79742.0,79735.0,0.250829]
[1744112301719,0.263385,79731.0,79730.0,0.02293621]
[1744112302271,0.012542,79730.0,79729.0,0.1606]
[1744112302413,0.012541,79737.0,79731.0,0.263382]
[1744112303011,0.012541,79736.0,79732.0,0.02293467]
[1744112303217,0.012539,79746.0,79733.0,0.12625864]
[1744112303338,0.263375,79734.0,79733.0,0.02293467]
[1744112303537,0.263375,79734.0,79733.0,0.18689467]
[1744112303742,0.26336,79739.0,79733.0,0.43773067]
[1744112303965,0.3590884,79760.0,79733.0,0.43773067]
[1744112303966,0.250808,79743.0,79737.0,0.263362]
[1744112304267,0.250811,79742.0,79738.0,0.02293467]
[1744112304584,0.263375,79734.0,79733.0,0.16396]
[1744112304784,0.263375,79734.0,79733.0,0.18688601]
[1744112305182,0.263375,79734.0,79733.0,0.02292601]
[1744112305589,0.012541,79737.0,79733.0,0.02292601]
[1744112305590,0.002,79742.0,79733.0,0.02292601]
[1744112305789,0.002,79742.0,79741.0,0.263352]
[1744112305992,0.250798,79746.0,79741.0,0.28627801]
[1744112306218,0.250798,79746.0,79741.0,0.02292601]
[1744112306545,0.250798,79746.0,79740.0,0.263355]
[1744112306546,0.012539,79748.0,79742.0,0.02292601]
[1744112306764,0.250802,79745.0,79743.0,0.02292601]
[1744112306876,0.01254,79744.0,79743.0,0.02292601]
[1744112307734,0.263385,79731.0,79730.0,0.16396]
[1744112307944,0.263385,79731.0,79730.0,0.18692246]
[1744112308151,0.25084,79733.0,79730.0,0.18692246]
[1744112308355,0.263358,79739.0,79730.0,0.43776746]
[1744112308510,0.263384,79732.0,79731.0,0.02296246]
[1744112308852,0.250839,79733.0,79731.0,0.02296246]
[1744112309056,0.012542,79732.0,79731.0,0.02296246]
[1744112309433,0.012542,79732.0,79730.0,0.16396]
[1744112309678,0.263385,79731.0,79730.0,0.16396]
[1744112310214,0.01254,79739.0,79734.0,0.263373]
[1744112310423,0.250836,79734.0,79730.0,0.18693233]
[1744112310625,0.263384,79732.0,79731.0,0.02297233]
[1744112310831,0.250827,79737.0,79731.0,0.03551433]
[1744112311068,0.012541,79733.0,79732.0,0.02297233]
[1744112311607,0.012541,79733.0,79730.0,0.16896]
[1744112311608,0.012542,79731.0,79730.0,0.16896]
[1744112311833,0.012542,79731.0,79730.0,0.16496]
[1744112312016,0.012542,79731.0,79730.0,0.16396]
[1744112312372,0.012541,79735.0,79730.0,0.16396]
[1744112312571,0.01254,79743.0,79731.0,0.012542]
[1744112312778,0.4118,79750.0,79731.0,0.02298165]
[1744112312779,0.012541,79733.0,79731.0,0.02298165]
[1744112313007,0.012542,79732.0,79731.0,0.02298165]
[1744112313200,0.263385,79731.0,79730.0,0.16596]
[1744112313601,0.263385,79731.0,79730.0,0.16696]
[1744112313804,0.263385,79731.0,79730.0,0.16596]
[1744112314010,0.012541,79734.0,79730.0,0.16596]
[1744112314209,0.012541,79734.0,79731.0,0.02298987]
[1744112314415,0.012541,79733.0,79731.0,0.02298987]
[1744112314614,0.012541,79736.0,79730.0,0.16596]
[1744112314816,0.01254,79742.0,79735.0,0.012541]
[1744112315160,0.01254,79742.0,79731.0,0.012542]
[1744112315161,0.4118,79750.0,79737.0,0.012541]
[1744112315370,0.3590884,79760.0,79744.0,0.250802]
[1744112315371,0.250774,79754.0,79744.0,0.250802]
[1744112315575,0.25203718,79760.0,79744.0,0.263342]
[1744112315576,0.012537,79759.0,79744.0,0.263342]
[1744112315721,0.250755,79760.0,79744.0,0.263342]
[1744112315924,0.263308,79755.0,79744.0,0.28633863]
[1744112316129,0.263315,79752.0,79744.0,0.28633863]
[1744112316301,0.012538,79753.0,79744.0,0.28633863]
[1744112316501,0.00612524,79745.0,79744.0,0.28733863]
[1744112316722,0.00712524,79745.0,79744.0,0.29333863]
[1744112316957,0.00712524,79745.0,79744.0,0.29233863]
[1744112317158,0.00812524,79745.0,79744.0,0.29733863]
[1744112318195,0.00712524,79745.0,79744.0,0.29133863]
[1744112318818,0.00812524,79745.0,79744.0,0.274342]
[1744112319652,0.27146324,79745.0,79744.0,0.011]
[1744112321080,0.27146324,79745.0,79744.0,0.005]
[1744112321283,0.27046324,79745.0,79744.0,0.005]
[1744112321473,0.27046324,79745.0,79716.0,0.0455]
[1744112321474,0.263385,79731.0,79721.0,0.263415]
[1744112321681,0.263385,79731.0,79724.0,0.250864]
[1744112321981,0.012542,79732.0,79727.0,0.250853]
[1744112322189,0.263375,79734.0,79729.0,0.263389]
[1744112322425,0.250842,79732.0,79726.0,0.012542]
[1744112322606,0.250843,79731.0,79726.0,0.263398]
[1744112322940,0.265385,79731.0,79730.0,0.17796]
[1744112323142,0.001,79731.0,79730.0,0.17296]
[1744112323344,0.001,79731.0,79730.0,0.185502]
[1744112323496,0.001,79731.0,79730.0,0.189502]
[1744112324018,0.001,79731.0,79730.0,0.427806]
[1744112324228,0.001,79731.0,79730.0,0.440348]
[1744112324570,0.001,79734.0,79730.0,0.431348]
[1744112324717,0.001,79732.0,79730.0,0.440348]
[1744112325147,0.001,79734.0,79730.0,0.431348]
[1744112325413,0.263368,79736.0,79731.0,0.250841]
[1744112325791,0.250833,79735.0,79730.0,0.17296]
[1744112325972,0.263369,79736.0,79730.0,0.16396]
[1744112326171,0.001,79732.0,79730.0,0.17796]
[1744112326376,0.001,79732.0,79730.0,0.014]
[1744112326377,0.012542,79731.0,79730.0,0.014]
[1744112326581,0.012542,79731.0,79730.0,0.009]
[1744112326918,0.013541,79734.0,79731.0,0.005]
[1744112326919,0.264375,79734.0,79731.0,0.005]
[1744112327088,0.264375,79734.0,79730.0,0.009]
[1744112327089,0.250839,79733.0,79730.0,0.009]
[1744112327413,0.012542,79731.0,79730.0,0.009]
[1744112327615,0.001,79734.0,79731.0,0.263385]
[1744112327914,0.001,79734.0,79731.0,0.012542]
[1744112328089,0.264377,79734.0,79729.0,0.263389]
[1744112328271,0.263385,79732.0,79727.0,0.250853]
[1744112328480,0.264385,79732.0,79730.0,0.012]
[1744112328678,0.250845,79731.0,79730.0,0.009]
[1744112329078,0.250845,79731.0,79727.0,0.250853]
[1744112329301,0.263381,79733.0,79729.0,0.001]